bitfinex-derivatives/quotes_ETHF0:USTF0_20250909
["timestamp","ask_amount","ask_price","bid_price","bid_amount"]
[1757461428032,0.292,4314.7,4314.5,1.66509749]
[1757461428238,0.7041,4314.6,4314.5,1.89809749]
[1757461428541,0.7041,4314.6,4314.5,2.09099749]
[1757461429140,0.7041,4314.6,4314.5,2.28389749]
[1757461433042,0.7041,4314.6,4314.5,0.6188]
[1757461437949,0.5001,4314.6,4314.5,0.7393]
[1757461438143,0.292,4314.6,4314.5,0.7393]
[1757461439347,0.6196,4315.0,4314.9,0.3858]
[1757461439846,0.6196,4315.0,4314.9,0.6188]
[1757461440051,0.8236,4315.0,4314.9,0.6188]
[1757461440256,0.8236,4315.0,4314.9,2.28401854]
[1757461440451,0.4115,4315.0,4314.9,2.40451854]
[1757461440656,0.4115,4315.0,4314.9,0.7393]
[1757461441549,0.292,4315.4,4315.3,0.3858]
[1757461441747,0.5001,4315.4,4315.3,0.3858]
[1757461441950,0.5001,4315.4,4315.3,0.5063]
[1757461442143,0.5001,4315.4,4315.3,2.17248599]
[1757461442747,0.292,4315.4,4315.3,2.05198599]
[1757461442952,0.292,4315.4,4315.3,2.05266074]
[1757461442953,0.5001,4315.4,4315.3,2.05266074]
[1757461443142,0.292,4315.3,4315.2,1.66686074]
[1757461443455,0.7041,4315.3,4315.2,1.66686074]
[1757461443754,0.7041,4315.3,4315.2,1.85976074]
[1757461444150,0.7041,4315.3,4315.2,0.1929]
[1757461445555,0.292,4315.3,4315.2,0.5063]
[1757461447460,0.292,4315.3,4315.2,0.9234]
[1757461447857,0.292,4315.3,4315.2,0.5063]
[1757461448657,0.292,4315.4,4315.2,0.3858]
[1757461448856,0.292,4315.4,4315.3,0.7393]
[1757461449457,0.5001,4315.4,4315.3,0.6188]
[1757461452164,0.7041,4315.4,4315.3,0.6188]
[1757461452362,0.292,4315.4,4315.3,0.7393]
[1757461452661,0.4142,4315.5,4315.4,0.5063]
[1757461452854,0.8263,4315.5,4315.4,0.3858]
[1757461453559,0.8263,4315.5,4315.4,0.233]
[1757461455465,0.8263,4315.5,4315.4,0.4259]
[1757461455764,0.4142,4315.5,4315.4,0.7393]
[1757461458167,0.6223,4315.5,4315.4,0.6188]
[1757461458371,0.829,4315.5,4315.4,0.6188]
[1757461458573,0.6223,4315.5,4315.4,0.7392]
[1757461460273,0.4142,4315.5,4315.4,0.7392]
[1757461460565,0.3231,4316.0,4315.9,0.3844]
[1757461460767,0.3231,4316.0,4315.9,2.28288879]
[1757461460974,0.3231,4316.0,4315.9,0.7378]
[1757461461166,0.639,4316.0,4315.9,0.92359997]
[1757461461366,0.639,4316.0,4315.9,0.7378]
[1757461463173,0.639,4316.0,4315.9,0.6174]
[1757461464269,0.8457,4316.0,4315.9,0.6174]
[1757461470277,0.1222,4316.5,4315.9,0.6174]
[1757461470278,0.5298,4316.5,4316.4,0.1922]
[1757461470478,0.5298,4316.5,4316.4,2.08997462]
[1757461470676,0.5298,4316.5,4316.4,0.4252]
[1757461470978,0.8457,4316.5,4316.4,0.4252]
[1757461471879,0.1222,4316.5,4316.4,0.7378]
[1757461472077,0.4381,4316.5,4316.4,0.7378]
[1757461473281,0.639,4316.5,4316.4,0.7378]
[1757461474285,0.639,4316.5,4316.4,2.81602104]
[1757461476080,0.639,4316.5,4316.4,2.69562104]
[1757461476472,0.8457,4316.5,4316.4,2.69562104]
[1757461477184,0.8457,4316.5,4316.4,0.6174]
[1757461478486,0.639,4316.5,4316.4,0.7378]
[1757461478985,0.4381,4316.5,4316.4,0.7378]
[1757461480482,0.639,4316.5,4316.4,0.7378]
[1757461482489,0.639,4316.5,4316.4,0.6174]
[1757461482690,0.8457,4316.5,4316.4,0.6174]
[1757461484891,0.8457,4316.5,4316.4,1.03439]
[1757461486092,0.8457,4316.5,4316.4,0.6174]
[1757461486892,0.2958,4316.4,4316.3,2.07822104]
[1757461487191,0.696,4316.4,4316.3,0.233]
[1757461496496,0.696,4316.4,4316.3,2.31122104]
[1757461498595,0.696,4316.4,4316.3,2.50372104]
[1757461498800,0.696,4316.4,4316.3,2.69622104]
[1757461499004,0.5009,4316.4,4316.3,3.23372104]
[1757461499198,0.2958,4316.4,4316.3,1.1555]
[1757461500200,0.2958,4316.4,4316.3,0.7385]
[1757461500999,0.2958,4316.4,4316.3,1.1555]
[1757461501600,0.1191,4317.0,4316.9,0.41694]
[1757461501793,0.521,4317.5,4317.4,0.2065]
[1757461502195,0.8168,4317.5,4317.4,0.2065]
[1757461503000,0.521,4317.5,4317.0,2.08346036]
[1757461503310,0.696,4317.2,4317.1,0.233]
[1757461504001,0.1263,4317.0,4316.9,2.08346036]
[1757461504203,0.8223,4317.0,4316.9,0.233]
[1757461505312,0.696,4316.9,4316.8,2.08346036]
[1757461505508,0.696,4316.9,4316.8,2.31646036]
[1757461506102,0.696,4316.9,4316.8,2.52296036]
[1757461507904,0.696,4316.8,4316.7,2.31646036]
[1757461508103,0.696,4316.8,4316.7,0.233]
[1757461508304,0.696,4316.8,4316.6,2.08346036]
[1757461508505,0.2958,4316.7,4316.6,2.31646036]
[1757461508711,0.696,4316.7,4316.6,2.31646036]
[1757461510410,0.696,4316.7,4316.5,0.233]
[1757461510909,0.5265,4316.5,4316.4,2.08346036]
[1757461511112,0.8223,4316.5,4316.4,0.233]
[1757461513213,0.2958,4316.4,4316.0,2.08346036]
[1757461513414,0.2958,4316.2,4316.0,2.08346036]
[1757461513613,0.696,4315.9,4315.8,2.08346036]
[1757461513914,0.2958,4315.8,4315.7,0.2065]
[1757461514216,0.696,4315.8,4315.7,0.2065]
[1757461517220,0.696,4315.8,4315.7,1.87062156]
[1757461518421,0.696,4315.8,4315.7,1.66412156]
[1757461519224,0.4002,4315.8,4315.6,1.66412156]
[1757461519516,0.6921,4315.7,4315.6,1.66412156]
[1757461519917,0.6921,4315.7,4315.6,1.86802156]
[1757461520118,0.6921,4315.7,4315.6,2.38492156]
[1757461520321,0.6921,4315.7,4315.6,0.7208]
[1757461521421,0.4871,4316.4,4316.3,0.5169]
[1757461521717,0.4871,4316.9,4316.8,0.7208]
[1757461522021,0.4871,4316.9,4316.8,0.9538]
[1757461522518,0.6921,4316.9,4316.8,0.9538]
[1757461522719,0.6921,4316.9,4316.8,0.6341]
[1757461526821,0.6921,4316.9,4316.8,0.9538]
[1757461528322,0.6921,4316.9,4316.8,0.7208]
[1757461528526,0.6921,4316.9,4316.8,0.4369]
[1757461533131,0.6921,4316.9,4316.8,0.9538]
[1757461534027,0.6921,4316.9,4316.8,0.7208]
[1757461535740,0.6921,4316.9,4316.7,1.89548579]
[1757461535925,0.4004,4316.7,4316.6,1.86638579]
[1757461536124,0.6921,4316.7,4316.6,1.66248579]
[1757461536525,0.6921,4316.7,4316.6,1.89548579]
[1757461536926,0.6921,4316.7,4316.6,1.86638579]
[1757461537137,0.6921,4316.7,4316.4,0.233]
[1757461537431,0.8089,4316.5,4316.4,0.233]
[1757461539630,0.4004,4316.3,4316.2,1.66248579]
[1757461539829,0.6921,4315.8,4315.7,0.4369]
[1757461540636,0.2917,4315.7,4315.6,0.233]
[1757461540826,0.6921,4315.7,4315.6,0.233]
[1757461541537,0.6921,4315.7,4315.6,0.4369]
[1757461542728,0.1168,4316.0,4315.6,0.9538]
[1757461543026,0.1168,4316.5,4315.9,0.3197]
[1757461543224,0.6921,4316.4,4316.3,0.2039]
[1757461547236,0.6921,4316.4,4316.0,0.3197]
[1757461549139,0.6921,4316.4,4315.9,0.233]
[1757461549338,0.6921,4316.4,4316.0,0.3107]
[1757461550739,0.6921,4316.4,4315.9,0.233]
[1757461550939,0.6921,4316.4,4316.0,0.3107]
[1757461551645,0.6921,4316.4,4315.9,0.233]
[1757461551938,0.6921,4316.4,4316.0,0.3107]
[1757461552241,0.6921,4316.4,4316.3,0.2034]
[1757461553343,0.6921,4316.4,4316.1,0.3107]
[1757461553839,0.122,4316.0,4315.7,1.97318579]
[1757461554040,0.7197,4315.8,4315.7,1.86588579]
[1757461554244,0.7197,4315.8,4315.7,2.09888579]
[1757461554840,0.7197,4315.8,4315.7,1.66248579]
[1757461555046,0.7197,4315.8,4315.6,0.233]
[1757461555339,0.122,4316.0,4315.4,1.66248579]
[1757461555340,0.3159,4315.7,4315.4,1.66248579]
[1757461555536,0.3159,4315.4,4315.3,1.66248579]
[1757461555735,0.7197,4315.2,4315.1,2.37668579]
[1757461557841,0.122,4316.0,4315.3,0.4035]
[1757461558043,0.3159,4315.9,4315.8,0.7142]
[1757461558234,0.3159,4316.4,4315.8,0.4035]
[1757461558440,0.7197,4316.4,4316.3,0.2034]
[1757461563654,0.7197,4316.4,4315.8,1.66248579]
[1757461563856,0.8417,4316.0,4315.9,0.2034]
[1757461564156,0.8417,4316.0,4315.9,1.86588579]
[1757461565254,0.8417,4316.0,4315.9,2.06598579]
[1757461565559,0.8365,4316.5,4316.4,0.2034]
[1757461567653,0.8365,4316.5,4316.0,1.97318579]
[1757461567873,0.3159,4316.4,4316.1,0.3107]
[1757461568158,0.7197,4316.2,4316.1,0.5141]
[1757461568556,0.7197,4316.2,4316.1,0.7142]
[1757461568759,0.1168,4316.5,4316.1,0.4035]
[1757461569059,0.122,4317.5,4316.3,0.7142]
[1757461569060,0.3159,4316.4,4316.3,0.7142]
[1757461569454,0.5127,4316.4,4316.3,0.7142]
[1757461569650,0.3159,4316.9,4316.3,0.4035]
[1757461569855,0.5127,4316.9,4316.8,0.7142]
[1757461570052,0.7197,4316.9,4316.8,0.7142]
[1757461574755,0.122,4317.5,4316.8,0.7142]
[1757461574959,0.1968,4317.0,4316.9,0.7142]
[1757461575162,0.5127,4317.0,4316.9,0.7142]
[1757461575360,0.8417,4317.0,4316.9,0.7142]
[1757461578464,0.8417,4317.0,4316.9,0.2034]
[1757461578870,0.8417,4317.0,4316.5,1.66248579]
[1757461579058,0.3138,4316.9,4316.5,1.95748579]
[1757461579263,0.4064,4316.6,4316.5,2.37738579]
[1757461579461,0.7202,4316.6,4316.5,2.37738579]
[1757461581158,0.7202,4316.6,4316.5,2.61038579]
[1757461582866,0.7202,4316.6,4316.4,1.66248579]
[1757461583057,0.8384,4316.5,4316.4,1.86998579]
[1757461583260,0.8384,4316.5,4316.4,2.16498579]
[1757461583559,0.8384,4316.5,4316.4,2.37738579]
[1757461583958,0.8384,4316.5,4316.4,1.66248579]
[1757461584158,0.8384,4316.5,4316.3,1.66248579]
[1757461584353,0.4064,4316.3,4316.2,1.66248579]
[1757461584557,0.7202,4316.3,4316.2,1.66248579]
[1757461585468,0.4064,4315.9,4315.8,1.66248579]
[1757461585766,0.1182,4316.0,4315.7,1.66248579]
[1757461585767,0.7202,4315.8,4315.7,1.66248579]
[1757461585974,0.7202,4315.8,4315.7,1.86998579]
[1757461590064,0.7202,4315.8,4315.7,0.2075]
[1757461592169,0.432,4315.5,4315.4,1.66248579]
[1757461592468,0.3138,4314.9,4314.7,1.66248579]
[1757461592668,0.5246,4315.0,4314.6,1.66248579]
[1757461592669,0.4064,4314.7,4314.6,1.66248579]
[1757461592868,0.7202,4314.7,4314.6,0.2075]
[1757461594868,0.1182,4315.0,4314.7,0.295]
[1757461595077,0.1182,4316.0,4315.3,0.4199]
[1757461595270,0.3138,4315.9,4315.3,0.4199]
[1757461595571,0.1182,4316.0,4315.3,0.4199]
[1757461595870,0.5246,4316.0,4315.9,0.2075]
[1757461596077,0.5246,4316.0,4315.9,0.7149]
[1757461596274,0.2106,4316.0,4315.9,0.7149]
[1757461596468,0.5244,4316.0,4315.9,0.7149]
[1757461596773,0.7202,4316.0,4315.9,0.7149]
[1757461597774,0.8384,4316.0,4315.9,0.7149]
[1757461601673,0.8384,4316.0,4315.5,0.295]
[1757461601984,0.7202,4315.2,4315.1,2.10298579]
[1757461602369,0.7202,4315.2,4315.1,2.61038579]
[1757461604372,0.7202,4315.2,4315.1,0.9479]
[1757461604578,0.7202,4315.2,4315.1,0.6529]
[1757461606179,0.7202,4315.2,4315.1,0.9479]
[1757461609980,0.5244,4315.2,4315.1,0.9479]
[1757461620389,0.723,4315.2,4315.1,0.233]
[1757461620585,0.723,4315.2,4315.1,0.9508]
[1757461620789,0.5244,4315.2,4315.1,0.9508]
[1757461621089,0.3138,4315.2,4315.1,0.9508]
[1757461621284,0.5104,4315.2,4315.1,0.9508]
[1757461621890,0.5104,4315.2,4315.1,0.7178]
[1757461626894,0.709,4315.2,4315.1,0.7178]
[1757461628991,0.3138,4315.2,4315.1,0.7178]
[1757461629292,0.5104,4315.2,4315.1,0.7178]
[1757461633798,0.709,4315.2,4315.1,0.7178]
[1757461635695,0.709,4315.2,4315.1,0.419]
[1757461636194,0.709,4315.2,4315.1,0.7178]
[1757461646504,0.709,4315.2,4315.1,0.2127]
[1757461646806,0.8298,4315.0,4314.9,2.08346036]
[1757461647000,0.8298,4315.0,4314.7,0.233]
[1757461647510,0.8298,4315.0,4314.5,2.08346036]
[1757461647511,0.3005,4314.9,4314.5,2.08346036]
[1757461647707,0.7055,4314.6,4314.4,0.233]
[1757461648012,0.5293,4314.5,4314.3,2.08346036]
[1757461648207,0.7055,4314.4,4314.3,2.08346036]
[1757461648408,0.7055,4314.4,4314.3,2.29826036]
[1757461648710,0.7055,4314.4,4314.3,0.2148]
[1757461648914,0.7055,4314.4,4314.3,0.709]
[1757461654114,0.7055,4314.2,4314.0,1.66685765]
[1757461654415,0.3005,4313.7,4313.6,1.66685765]
[1757461654611,0.405,4313.7,4313.6,1.66685765]
[1757461654823,0.7055,4313.7,4313.6,1.66685765]
[1757461655411,0.3005,4313.6,4313.5,1.66685765]
[1757461655610,0.7055,4313.6,4313.5,1.66685765]
[1757461655815,0.93733,4313.6,4313.5,1.66685765]
[1757461656013,0.7055,4313.4,4313.2,1.66685765]
[1757461656215,0.7055,4313.1,4313.0,1.66685765]
[1757461656512,0.35615,4313.5,4312.6,1.66685765]
[1757461656513,0.8298,4313.0,4312.6,1.66685765]
[1757461656815,0.1243,4312.5,4312.4,1.66685765]
[1757461657112,0.3005,4312.1,4312.0,1.88165765]
[1757461657320,0.7055,4312.1,4312.0,0.2148]
[1757461657510,0.7055,4312.1,4312.0,0.709]
[1757461657711,0.7055,4311.7,4311.6,0.7407]
[1757461657923,0.4992,4311.7,4311.6,0.943]
[1757461658108,0.2063,4311.8,4311.7,0.2919]
[1757461658412,0.4992,4311.6,4311.5,0.943]
[1757461658717,0.4992,4311.9,4311.8,0.709]
[1757461660014,0.2402,4312.5,4311.8,0.709]
[1757461660213,0.1159,4312.5,4312.3,0.709]
[1757461660417,0.1159,4312.5,4312.3,0.4171]
[1757461660717,0.1159,4312.5,4312.4,0.709]
[1757461661820,0.1159,4312.5,4312.4,4.94089]
[1757461662514,0.4992,4313.4,4313.3,0.709]
[1757461662914,0.7055,4313.4,4313.3,0.709]
[1757461663211,0.1243,4314.0,4312.6,0.5067]
[1757461663212,0.4992,4312.7,4312.6,0.5067]
[1757461663407,0.7055,4312.7,4312.6,0.943]
[1757461664216,0.7055,4312.7,4312.6,0.4171]
[1757461664814,0.7055,4312.7,4312.6,0.2148]
[1757461665118,0.7055,4312.2,4312.1,0.943]
[1757461668317,0.7055,4312.2,4312.1,0.6511]
[1757461670526,0.7055,4312.2,4312.1,0.9438]
[1757461675026,0.7055,4312.2,4311.8,0.2927]
[1757461675328,0.7295,4311.8,4311.7,0.7111]
[1757461677428,0.5274,4311.8,4311.7,0.7111]
[1757461677733,0.3202,4311.8,4311.7,0.7111]
[1757461677921,0.1243,4312.5,4311.7,0.7111]
[1757461678126,0.5274,4312.4,4312.3,0.4184]
[1757461678325,0.7295,4312.4,4312.3,0.4184]
[1757461678533,0.7295,4312.4,4312.3,0.2051]
[1757461678725,0.7295,4312.4,4312.1,0.2927]
[1757461678926,0.4093,4312.4,4311.7,0.2927]
[1757461679234,0.3202,4312.3,4311.7,0.2927]
[1757461680134,0.7295,4312.3,4312.2,0.2051]
[1757461681926,0.7295,4312.3,4312.2,0.7111]
[1757461682232,0.7295,4312.3,4312.2,0.4184]
[1757461682430,0.7295,4312.3,4311.9,0.2927]
[1757461682730,0.8497,4312.0,4311.9,0.7111]
[1757461683031,0.8497,4312.0,4311.9,2.37795765]
[1757461683225,0.8497,4312.0,4311.9,0.7111]
[1757461683725,0.5274,4312.0,4311.9,0.7111]
[1757461683921,0.3202,4312.4,4311.9,0.4184]
[1757461684128,0.5274,4312.4,4312.3,0.7111]
[1757461684328,0.7295,4312.4,4312.3,0.4184]
[1757461684727,0.7295,4312.4,4312.3,0.2051]
[1757461685629,0.7295,4312.4,4312.3,0.7111]
[1757461688529,0.4093,4312.2,4312.1,1.66522306]
[1757461688735,0.7295,4312.2,4312.1,1.66522306]
[1757461689229,0.3202,4312.1,4312.0,1.66522306]
[1757461689430,0.7295,4312.1,4312.0,1.66522306]
[1757461689728,0.1202,4311.5,4311.4,1.66522306]
[1757461689933,0.8497,4311.5,4311.4,1.66522306]
[1757461690330,0.3202,4311.4,4311.3,1.66522306]
[1757461690529,0.7295,4311.4,4311.3,1.66522306]
[1757461691729,0.7295,4311.3,4311.2,1.66522306]
[1757461691936,0.7295,4311.3,4311.2,2.37632306]
[1757461695241,0.5274,4311.3,4311.2,2.37632306]
[1757461697534,33.403,4312.9,4311.2,2.37632306]
[1757461697535,33.403,4312.9,4311.8,0.4084]
[1757461697733,0.5369,4312.5,4312.4,0.2065]
[1757461697938,0.8497,4312.5,4312.4,0.2065]
[1757461700339,0.8497,4312.5,4312.4,0.728]
[1757461702137,0.8497,4312.5,4312.4,0.4084]
[1757461703147,0.8497,4312.5,4312.4,0.2065]
[1757461704538,0.8497,4312.5,4312.1,1.98511803]
[1757461704740,0.8497,4312.5,4312.0,1.66551803]
[1757461704741,0.7254,4312.1,4312.0,1.66551803]
[1757461705042,0.1243,4312.5,4311.0,0.1112]
[1757461705043,0.8493,4312.0,4311.9,1.66551803]
[1757461707337,0.5163,4312.0,4311.9,2.39351803]
[1757461707541,0.9547,4312.5,4312.4,0.728]
[1757461707736,0.9547,4312.5,4312.4,0.2065]
[1757461709443,0.8497,4312.5,4312.4,0.2065]
[1757461710146,0.8497,4312.5,4312.4,0.728]
[1757461710739,0.8497,4312.5,4312.4,0.4084]
[1757461711943,0.8497,4312.5,4312.1,1.6666454]
[1757461712247,0.8493,4312.0,4311.9,1.6666454]
[1757461712433,0.8493,4312.0,4311.9,1.8731454]
[1757461713338,0.8493,4312.0,4311.9,2.3946454]
[1757461716643,0.8493,4312.0,4311.9,1.8731454]
[1757461716845,0.8493,4312.0,4311.9,2.3946454]
[1757461717243,0.8493,4312.0,4311.9,2.0750454]
[1757461717649,0.8493,4312.0,4311.9,2.3946454]
[1757461719851,0.1243,4312.5,4311.9,2.3946454]
[1757461720051,0.5369,4312.5,4312.4,0.2065]
[1757461720547,0.3128,4312.4,4312.0,1.66763413]
[1757461720746,0.7254,4312.2,4312.1,0.728]
[1757461725251,0.7254,4312.2,4312.1,2.39563413]
[1757461727759,0.7254,4312.2,4312.1,0.728]
[1757461729853,0.5163,4312.2,4312.1,0.728]
[1757461730258,0.3128,4312.2,4312.1,0.728]
[1757461730857,0.52,4312.2,4312.1,0.728]
[1757461731751,0.7186,4312.2,4312.1,0.728]
[1757461731958,0.7186,4312.2,4312.1,0.7249]
[1757461736055,0.3128,4312.2,4312.1,0.7249]
[1757461736254,0.7044,4312.9,4312.8,0.2014]
[1757461736554,1.48432101,4312.9,4312.8,0.2014]
[1757461736753,0.7044,4312.9,4312.5,0.3165]
[1757461737256,0.4058,4312.9,4312.3,1.9861827]
[1757461737457,0.7044,4312.4,4312.3,2.3848827]
[1757461738556,0.7044,4312.4,4312.3,0.7152]
[1757461739359,0.7044,4312.4,4312.3,2.3848827]
[1757461741254,0.2986,4313.4,4312.8,0.3987]
[1757461741454,0.7044,4313.4,4313.3,0.3987]
[1757461741659,1.25245551,4313.4,4313.3,0.2014]
[1757461741854,1.25245551,4313.4,4313.0,0.3165]
[1757461742054,0.7044,4313.4,4313.0,0.3165]
[1757461742455,0.4058,4312.8,4312.7,2.38477419]
[1757461742755,0.4058,4312.8,4312.0,0.52881]
[1757461742756,0.4058,4312.8,4312.5,1.66957419]
[1757461742952,0.4058,4312.6,4312.5,1.66957419]
[1757461743263,0.7044,4312.6,4312.5,1.66957419]
[1757461743959,0.7044,4312.6,4312.5,1.87097419]
[1757461744762,0.7044,4312.6,4312.5,1.66957419]
[1757461745157,0.8309,4312.5,4312.4,1.66957419]
[1757461746070,0.5323,4312.5,4312.3,1.66957419]
[1757461746262,0.7044,4312.4,4312.3,1.66957419]
[1757461747268,0.2986,4312.3,4312.2,1.66957419]
[1757461747465,0.7044,4312.2,4312.1,1.66957419]
[1757461747766,0.7044,4312.2,4312.1,1.87097419]
[1757461750660,0.7044,4312.2,4312.1,2.38477419]
[1757461751362,0.2986,4312.9,4312.1,2.06827419]
[1757461751666,0.2986,4312.9,4312.8,0.3987]
[1757461751667,1.05428,4312.9,4312.8,0.3987]
[1757461751868,1.05428,4312.9,4312.5,0.3165]
[1757461752064,0.2986,4312.8,4312.2,0.3165]
[1757461752283,0.2072,4312.3,4312.2,0.7152]
[1757461752464,0.5058,4312.3,4312.2,0.7152]
[1757461753169,0.7044,4312.3,4312.2,0.3987]
[1757461754171,0.7044,4312.3,4312.2,0.7152]
[1757461756472,0.7044,4312.3,4312.2,0.3987]
[1757461757677,0.4058,4312.3,4312.1,1.66957419]
[1757461757975,0.7143,4312.2,4312.1,1.87137419]
[1757461760078,0.4991,4312.2,4312.1,2.38227419]
[1757461760376,0.2987,4312.2,4312.1,2.38227419]
[1757461762072,0.4991,4312.9,4312.8,0.7127]
[1757461762576,0.7143,4312.9,4312.8,0.4064]
[1757461765081,0.7143,4312.9,4312.8,0.7127]
[1757461765581,0.4991,4312.9,4312.8,0.7127]
[1757461768182,0.2987,4313.4,4312.9,0.3063]
[1757461768384,0.8382,4313.5,4313.4,0.7127]
[1757461768583,1.6199288,4313.5,4313.4,0.7127]
[1757461768784,1.6199288,4313.5,4313.4,0.4064]
[1757461769885,1.0722,4313.5,4313.4,0.4064]
[1757461770086,0.8382,4313.5,4313.4,0.4064]
[1757461770278,1.0712,4313.5,4313.4,0.4064]
[1757461772085,1.0712,4313.5,4313.4,0.2018]
[1757461772684,1.0712,4313.5,4313.1,0.3063]
[1757461773785,1.0712,4313.5,4312.6,1.66879146]
[1757461774085,0.7143,4313.4,4313.3,0.2018]
[1757461776088,0.7143,4313.4,4313.1,0.3063]
[1757461776581,0.7143,4313.4,4313.3,0.5081]
[1757461777187,0.7143,4313.4,4313.3,0.2018]
[1757461777687,0.7143,4313.4,4313.3,0.7127]
[1757461779090,0.7143,4313.4,4313.3,0.4064]
[1757461779583,0.7143,4313.4,4313.3,0.7127]
[1757461779893,0.7143,4313.4,4313.3,0.4064]
[1757461782791,0.4156,4313.4,4312.7,0.3063]
[1757461782993,0.7143,4312.8,4312.7,0.7127]
[1757461783286,0.7143,4312.6,4312.5,2.38149146]
[1757461785393,0.4991,4312.6,4312.5,2.38149146]
[1757461786393,0.4991,4312.6,4312.5,0.7127]
[1757461792996,1.55496602,4314.4,4313.9,0.322]
[1757461793204,0.3085,4314.7,4314.6,0.741]
[1757461793589,0.721,4314.7,4314.6,0.741]
[1757461794197,0.3085,4314.9,4314.7,0.322]
[1757461794394,0.3085,4314.9,4314.8,0.419]
[1757461794590,0.3085,4314.9,4314.8,0.741]
[1757461794998,0.1238,4315.5,4314.8,0.741]
[1757461795299,0.721,4315.4,4315.3,0.2076]
[1757461795503,0.721,4315.4,4315.3,0.741]
[1757461796097,0.721,4315.4,4314.7,1.66819663]
[1757461796098,0.721,4314.8,4314.7,1.66819663]
[1757461796304,0.8448,4314.0,4313.9,0.5296]
[1757461796605,0.721,4314.0,4313.9,0.741]
[1757461797303,0.8448,4314.0,4313.9,0.741]
[1757461798006,0.519,4314.0,4313.9,0.741]
[1757461800198,0.3085,4313.9,4313.6,1.66819663]
[1757461800395,0.1238,4313.5,4313.1,1.66819663]
[1757461800599,0.4125,4313.3,4313.2,1.87579663]
[1757461800798,0.721,4313.3,4313.2,0.2076]
[1757461804708,0.721,4313.3,4313.2,1.87579663]
[1757461806412,0.519,4313.5,4313.4,0.741]
[1757461806711,0.1238,4314.5,4313.9,0.741]
[1757461806905,0.1238,4314.5,4313.5,0.52847]
[1757461806906,0.519,4314.4,4314.3,0.741]
[1757461807207,0.1238,4315.0,4314.3,0.741]
[1757461807509,0.3085,4314.9,4314.3,0.741]
[1757461807910,0.1238,4315.0,4314.3,0.741]
[1757461808110,0.519,4314.4,4314.3,0.741]
[1757461810621,0.3085,4314.9,4314.8,0.2114]
[1757461810814,0.721,4314.9,4314.8,0.419]
[1757461817126,0.2029,4315.0,4314.9,0.7124]
[1757461817425,0.7027,4315.0,4314.9,0.7124]
[1757461818137,0.8195,4315.0,4314.9,0.7124]
[1757461819537,0.4998,4315.0,4314.9,0.7124]
[1757461820528,0.8265,4315.5,4315.4,0.7124]
[1757461821324,0.8265,4315.5,4315.4,0.4032]
[1757461821825,0.8265,4315.5,4315.4,0.7124]
[1757461822023,0.8265,4315.5,4315.4,0.4032]
[1757461822226,0.8265,4315.5,4315.4,0.7124]
[1757461822530,0.8265,4315.5,4315.4,0.4032]
[1757461823530,0.8265,4315.5,4315.4,0.1947]
[1757461823729,0.8265,4315.5,4315.1,0.3092]
[1757461827828,0.8265,4315.5,4314.7,1.66819663]
[1757461828128,0.7027,4315.4,4315.3,0.1947]
[1757461830328,0.7027,4315.4,4315.3,0.7124]
[1757461830647,0.2983,4315.3,4315.0,1.66819663]
[1757461830832,0.4044,4315.1,4315.0,1.86289663]
[1757461831138,0.7027,4315.1,4315.0,1.86289663]
[1757461831337,0.7027,4315.1,4315.0,2.17209663]
[1757461831541,0.7027,4315.1,4315.0,2.38059663]
[1757461831935,0.1238,4315.5,4315.0,2.38059663]
[1757461832236,0.4998,4315.4,4315.3,0.7124]
[1757461836239,0.7027,4315.4,4315.3,0.7124]
[1757461839541,0.4998,4315.4,4315.3,0.7124]
[1757461839743,0.4998,4315.4,4315.3,2.38059663]
[1757461843445,0.2015,4315.5,4315.4,0.5039]
[1757461843649,0.2015,4315.5,4315.4,0.7124]
[1757461843849,0.4998,4315.5,4315.4,0.7124]
[1757461845446,0.4998,4315.5,4315.4,2.38059663]
[1757461846551,0.7027,4315.5,4315.4,2.38059663]
[1757461846749,0.8195,4315.5,4315.4,2.38059663]
[1757461846950,0.5403,4315.5,4315.4,1.86269663]
[1757461847156,0.8594,4315.5,4315.4,2.36369663]
[1757461847747,0.7361,4315.5,4315.4,2.36369663]
[1757461849759,0.8594,4315.5,4315.4,2.36369663]
[1757461850054,0.7361,4315.5,4315.4,2.36369663]
[1757461850250,0.7361,4315.5,4315.4,0.6955]
[1757461850454,0.417,4315.2,4314.9,2.08693802]
[1757461850653,0.5403,4315.0,4314.9,2.28143802]
[1757461850852,0.8594,4315.0,4314.9,2.28143802]
[1757461851759,0.8594,4315.0,4314.9,2.78243802]
[1757461853659,0.8594,4315.0,4314.9,2.47733802]
[1757461855263,0.8594,4315.0,4314.9,2.08693802]
[1757461855562,0.8594,4315.0,4314.9,0.00347766]
[1757461858557,4.77205,4315.0,4314.8,1.6674074]
[1757461858756,0.4424,4314.5,4314.4,1.6674074]
[1757461858956,0.8594,4314.5,4314.4,1.8619074]
[1757461859156,0.1233,4315.0,4314.5,0.3051]
[1757461859357,0.8594,4315.0,4314.9,0.1945]
[1757461860256,0.8594,4315.0,4314.9,0.6955]
[1757461860465,0.3191,4315.3,4314.9,2.05758932]
[1757461860768,0.5231,4315.3,4315.2,0.6955]
[1757461860962,0.7361,4315.3,4315.2,0.6955]
[1757461865065,0.00347766,4315.4,4315.3,0.6955]
[1757461865760,0.3191,4315.3,4315.1,2.08346036]
[1757461865961,0.1233,4315.0,4314.7,1.66611903]
[1757461866156,0.3191,4314.7,4314.6,1.66611903]
[1757461866363,0.7361,4314.6,4314.5,1.66611903]